[Event "Titled Tuesday Blitz August 31 2021"]
[White "Costachi, Mihnea"]
[Black "Silva, Miguel Antonio Neto"]
[WhiteFideId "1217518"]
[BlackFideId "1911929"]
[WhiteElo "2482"]
[BlackElo "2283"]
[Result "1-0"]
[Round "03"]
[TimeControl "180+1"]
[Date "2021.08.31"]
[WhiteClock "0:02:11"]
[BlackClock "0:00:27"]

1. e4 {[%clk 0:03:00]}  e5 {[%clk 0:02:51]} 2. Nf3 {[%clk 0:03:00]}  Nc6 {[%clk 0:02:47]} 3. Bc4 {[%clk 0:02:59]}  Bc5 {[%clk 0:02:46]} 4. O-O {[%clk 0:02:58]}  Nf6 {[%clk 0:02:40]} 5. d4 {[%clk 0:02:57]}  Bxd4 {[%clk 0:02:37]} 6. Nxd4 {[%clk 0:02:54]}  Nxd4 {[%clk 0:02:37]} 7. Bg5 {[%clk 0:02:55]}  Qe7 {[%clk 0:02:14]} 8. Nc3 {[%clk 0:02:52]}  c6 {[%clk 0:02:10]} 9. Kh1 {[%clk 0:02:50]}  h6 {[%clk 0:02:09]} 10. Bh4 {[%clk 0:02:51]}  g5 {[%clk 0:02:02]} 11. Bg3 {[%clk 0:02:51]}  d6 {[%clk 0:02:01]} 12. Ne2 {[%clk 0:02:47]}  Nxe2 {[%clk 0:01:58]} 13. Qxe2 {[%clk 0:02:48]}  Be6 {[%clk 0:01:58]} 14. Rad1 {[%clk 0:02:48]}  O-O-O {[%clk 0:01:55]} 15. a4 {[%clk 0:02:47]}  h5 {[%clk 0:01:43]} 16. f3 {[%clk 0:02:47]}  h4 {[%clk 0:01:43]} 17. Bf2 {[%clk 0:02:47]}  Kb8 {[%clk 0:01:17]} 18. a5 {[%clk 0:02:47]}  g4 {[%clk 0:01:13]} 19. Bxe6 {[%clk 0:02:45]}  fxe6 {[%clk 0:01:11]} 20. Qe3 {[%clk 0:02:45]}  c5 {[%clk 0:01:09]} 21. a6 {[%clk 0:02:45]}  g3 {[%clk 0:01:08]} 22. Bg1 {[%clk 0:02:42]}  h3 {[%clk 0:01:06]} 23. hxg3 {[%clk 0:02:35]}  hxg2+ {[%clk 0:01:06]} 24. Kxg2 {[%clk 0:02:34]}  Rdg8 {[%clk 0:01:02]} 25. Qd3 {[%clk 0:02:27]}  d5 {[%clk 0:00:52]} 26. Qb5 {[%clk 0:02:25]}  d4 {[%clk 0:00:48]} 27. Qxb7+ {[%clk 0:02:22]}  Qxb7 {[%clk 0:00:46]} 28. axb7 {[%clk 0:02:22]}  Kxb7 {[%clk 0:00:46]} 29. g4 {[%clk 0:02:16]}  Nd7 {[%clk 0:00:37]} 30. Ra1 {[%clk 0:02:12]}  Nf8 {[%clk 0:00:36]} 31. Bh2 {[%clk 0:02:11]}  Ng6 {[%clk 0:00:35]} 32. Bg3 {[%clk 0:02:11]}  Nf4+ {[%clk 0:00:34]} 33. Bxf4 {[%clk 0:02:11]}  exf4 {[%clk 0:00:34]} 34. Ra5 {[%clk 0:02:12]}  Rg5 {[%clk 0:00:30]} 35. b4 {[%clk 0:02:11]}  Rc8 {[%clk 0:00:27]} 36. Rfa1 {[%clk 0:02:11]} 1-0


[Site "https://www.chess.com"]

[Event "Titled Tuesday Blitz August 31 2021"]
[White "Danielian, Vardan"]
[Black "Dang, Hoang Son"]
[WhiteFideId "13301594"]
[BlackFideId "12402435"]
[WhiteElo "2510"]
[BlackElo "2248"]
[Result "1-0"]
[Round "03"]
[TimeControl "180+1"]
[Date "2021.08.31"]
[WhiteClock "0:00:11"]
[BlackClock "0:00:16"]

1. Nf3 {[%clk 0:02:59]}  h5 {[%clk 0:02:59]} 2. d4 {[%clk 0:02:58]}  d5 {[%clk 0:02:57]} 3. c4 {[%clk 0:02:58]}  c6 {[%clk 0:02:57]} 4. Nc3 {[%clk 0:02:57]}  Nf6 {[%clk 0:02:56]} 5. Bg5 {[%clk 0:02:45]}  Ne4 {[%clk 0:02:54]} 6. Bf4 {[%clk 0:02:42]}  Qa5 {[%clk 0:02:49]} 7. Qc2 {[%clk 0:02:40]}  Bf5 {[%clk 0:02:46]} 8. Qb3 {[%clk 0:02:37]}  Qb6 {[%clk 0:02:15]} 9. cxd5 {[%clk 0:02:15]}  Qxb3 {[%clk 0:02:09]} 10. axb3 {[%clk 0:02:14]}  Nxc3 {[%clk 0:02:04]} 11. bxc3 {[%clk 0:02:14]}  cxd5 {[%clk 0:02:04]} 12. e3 {[%clk 0:02:12]}  a6 {[%clk 0:01:54]} 13. Kd2 {[%clk 0:02:06]}  f6 {[%clk 0:01:53]} 14. h4 {[%clk 0:02:03]}  Nd7 {[%clk 0:01:27]} 15. Bd3 {[%clk 0:01:57]}  Bg4 {[%clk 0:01:25]} 16. c4 {[%clk 0:01:49]}  e5 {[%clk 0:01:15]} 17. dxe5 {[%clk 0:01:43]}  Bb4+ {[%clk 0:01:14]} 18. Kc2 {[%clk 0:01:42]}  Bxf3 {[%clk 0:01:14]} 19. gxf3 {[%clk 0:01:29]}  fxe5 {[%clk 0:01:14]} 20. Bg5 {[%clk 0:01:25]}  O-O {[%clk 0:01:07]} 21. f4 {[%clk 0:01:08]}  e4 {[%clk 0:01:02]} 22. Be2 {[%clk 0:01:07]}  Rac8 {[%clk 0:00:57]} 23. Rhd1 {[%clk 0:01:01]}  Nb6 {[%clk 0:00:56]} 24. Kb2 {[%clk 0:00:42]}  dxc4 {[%clk 0:00:55]} 25. bxc4 {[%clk 0:00:42]}  a5 {[%clk 0:00:48]} 26. Rac1 {[%clk 0:00:40]}  Na4+ {[%clk 0:00:42]} 27. Kb3 {[%clk 0:00:40]}  Nc5+ {[%clk 0:00:42]} 28. Kb2 {[%clk 0:00:40]}  Rc6 {[%clk 0:00:32]} 29. Rd5 {[%clk 0:00:33]}  Rb6 {[%clk 0:00:31]} 30. Ka2 {[%clk 0:00:33]}  Na4 {[%clk 0:00:29]} 31. c5 {[%clk 0:00:24]}  Rc6 {[%clk 0:00:15]} 32. Bb5 {[%clk 0:00:20]}  Nc3+ {[%clk 0:00:16]} 33. Rxc3 {[%clk 0:00:20]}  Bxc3 {[%clk 0:00:16]} 34. Bxc6 {[%clk 0:00:20]}  bxc6 {[%clk 0:00:17]} 35. Rd6 {[%clk 0:00:19]}  Rb8 {[%clk 0:00:18]} 36. Rxc6 {[%clk 0:00:19]}  Rb2+ {[%clk 0:00:18]} 37. Ka3 {[%clk 0:00:19]}  Rxf2 {[%clk 0:00:18]} 38. Rc8+ {[%clk 0:00:18]}  Kh7 {[%clk 0:00:18]} 39. c6 {[%clk 0:00:19]}  Bb4+ {[%clk 0:00:18]} 40. Ka4 {[%clk 0:00:19]}  Rc2 {[%clk 0:00:15]} 41. c7 {[%clk 0:00:18]}  Bd6 {[%clk 0:00:15]} 42. Bd8 {[%clk 0:00:18]}  Rc3 {[%clk 0:00:14]} 43. Kxa5 {[%clk 0:00:17]}  Rxe3 {[%clk 0:00:14]} 44. Rb8 {[%clk 0:00:16]}  Ra3+ {[%clk 0:00:12]} 45. Kb5 {[%clk 0:00:16]}  Rb3+ {[%clk 0:00:13]} 46. Kc6 {[%clk 0:00:16]}  Rxb8 {[%clk 0:00:13]} 47. Kxd6 {[%clk 0:00:15]}  Ra8 {[%clk 0:00:13]} 48. Kd7 {[%clk 0:00:14]}  e3 {[%clk 0:00:14]} 49. c8=Q {[%clk 0:00:14]}  Rxc8 {[%clk 0:00:13]} 50. Kxc8 {[%clk 0:00:15]}  Kg6 {[%clk 0:00:14]} 51. Kd7 {[%clk 0:00:14]}  Kf5 {[%clk 0:00:14]} 52. Ke7 {[%clk 0:00:12]}  Kxf4 {[%clk 0:00:13]} 53. Kf7 {[%clk 0:00:13]}  e2 {[%clk 0:00:13]} 54. Ba5 {[%clk 0:00:11]}  Kg3 {[%clk 0:00:14]} 55. Be1+ {[%clk 0:00:10]}  Kg2 {[%clk 0:00:14]} 56. Kxg7 {[%clk 0:00:10]}  Kf1 {[%clk 0:00:15]} 57. Bc3 {[%clk 0:00:10]}  Kf2 {[%clk 0:00:14]} 58. Kh6 {[%clk 0:00:10]}  Ke3 {[%clk 0:00:14]} 59. Kxh5 {[%clk 0:00:10]}  Kd3 {[%clk 0:00:15]} 60. Be1 {[%clk 0:00:10]}  Ke4 {[%clk 0:00:16]} 61. Kg6 {[%clk 0:00:10]}  Ke5 {[%clk 0:00:16]} 62. h5 {[%clk 0:00:11]} 1-0


[Site "https://www.chess.com"]

[Event "Titled Tuesday Blitz August 31 2021"]
[White "De Silva, L M S T"]
[Black "Wagner, Dennis"]
[WhiteFideId "9953698"]
[BlackFideId "24650684"]
[WhiteElo "1621"]
[BlackElo "2355"]
[Result "1/2-1/2"]
[Round "03"]
[TimeControl "180+1"]
[Date "2021.08.31"]
[WhiteClock "0:01:08"]
[BlackClock "0:00:54"]

1. e4 {[%clk 0:03:00]}  e5 {[%clk 0:02:59]} 2. Nf3 {[%clk 0:03:01]}  Nc6 {[%clk 0:03:00]} 3. Bc4 {[%clk 0:03:01]}  Nf6 {[%clk 0:03:00]} 4. d3 {[%clk 0:03:02]}  Bc5 {[%clk 0:03:00]} 5. O-O {[%clk 0:03:02]}  d6 {[%clk 0:02:59]} 6. c3 {[%clk 0:03:03]}  O-O {[%clk 0:02:55]} 7. Re1 {[%clk 0:03:02]}  Bb6 {[%clk 0:02:51]} 8. h3 {[%clk 0:03:00]}  Ne7 {[%clk 0:02:51]} 9. Nbd2 {[%clk 0:03:01]}  c6 {[%clk 0:02:50]} 10. Bb3 {[%clk 0:02:58]}  Ng6 {[%clk 0:02:49]} 11. Nf1 {[%clk 0:02:59]}  d5 {[%clk 0:02:48]} 12. Ng3 {[%clk 0:02:54]}  dxe4 {[%clk 0:02:43]} 13. dxe4 {[%clk 0:02:55]}  Qxd1 {[%clk 0:02:44]} 14. Rxd1 {[%clk 0:02:56]}  h6 {[%clk 0:02:44]} 15. Bd2 {[%clk 0:02:32]}  Bd7 {[%clk 0:02:43]} 16. c4 {[%clk 0:02:13]}  Be6 {[%clk 0:02:30]} 17. Bb4 {[%clk 0:02:12]}  c5 {[%clk 0:01:56]} 18. Bc3 {[%clk 0:02:11]}  Bc7 {[%clk 0:01:56]} 19. Rd2 {[%clk 0:02:11]}  a5 {[%clk 0:01:53]} 20. a4 {[%clk 0:02:09]}  Rfd8 {[%clk 0:01:51]} 21. Rad1 {[%clk 0:02:08]}  Rxd2 {[%clk 0:01:38]} 22. Rxd2 {[%clk 0:02:09]}  Nd7 {[%clk 0:01:38]} 23. Ba2 {[%clk 0:02:01]}  Nb8 {[%clk 0:01:29]} 24. b3 {[%clk 0:01:58]}  Nc6 {[%clk 0:01:29]} 25. Ne1 {[%clk 0:01:32]}  Nd4 {[%clk 0:01:27]} 26. Bxd4 {[%clk 0:01:32]}  cxd4 {[%clk 0:01:15]} 27. Nd3 {[%clk 0:01:32]}  Bd6 {[%clk 0:01:08]} 28. Bb1 {[%clk 0:01:30]}  b6 {[%clk 0:01:05]} 29. Ne2 {[%clk 0:01:28]}  Rc8 {[%clk 0:01:02]} 30. Kf1 {[%clk 0:01:27]}  Nf8 {[%clk 0:00:59]} 31. f4 {[%clk 0:01:25]}  f6 {[%clk 0:00:59]} 32. g4 {[%clk 0:01:23]}  Nd7 {[%clk 0:00:59]} 33. f5 {[%clk 0:01:22]}  Bf7 {[%clk 0:00:59]} 34. h4 {[%clk 0:01:14]}  Nc5 {[%clk 0:00:58]} 35. Nxc5 {[%clk 0:01:13]}  bxc5 {[%clk 0:00:55]} 36. Nc1 {[%clk 0:01:12]}  Rb8 {[%clk 0:00:55]} 37. Bc2 {[%clk 0:01:12]}  Be7 {[%clk 0:00:54]} 38. h5 {[%clk 0:01:11]}  Kf8 {[%clk 0:00:54]} 39. Nd3 {[%clk 0:01:11]}  Ke8 {[%clk 0:00:54]} 40. Ke1 {[%clk 0:01:10]}  Kd7 {[%clk 0:00:54]} 41. Kd1 {[%clk 0:01:10]}  Kc7 {[%clk 0:00:55]} 42. Kc1 {[%clk 0:01:11]}  Be8 {[%clk 0:00:55]} 43. Bd1 {[%clk 0:01:10]}  Bc6 {[%clk 0:00:55]} 44. Re2 {[%clk 0:01:06]}  Bd6 {[%clk 0:00:55]} 45. Kc2 {[%clk 0:01:05]}  Kb6 {[%clk 0:00:53]} 46. Re1 {[%clk 0:01:05]}  Rb7 {[%clk 0:00:53]} 47. Bf3 {[%clk 0:01:06]}  Rf7 {[%clk 0:00:53]} 48. Re2 {[%clk 0:01:06]}  Rf8 {[%clk 0:00:54]} 49. Re1 {[%clk 0:01:06]}  Rb8 {[%clk 0:00:54]} 50. Re2 {[%clk 0:01:06]}  Kc7 {[%clk 0:00:55]} 51. Re1 {[%clk 0:01:06]}  Kd7 {[%clk 0:00:55]} 52. Re2 {[%clk 0:01:07]}  Rb7 {[%clk 0:00:55]} 53. Re1 {[%clk 0:01:07]}  Kd8 {[%clk 0:00:54]} 54. Re2 {[%clk 0:01:08]}  Kc7 {[%clk 0:00:54]} 1/2-1/2


[Site "https://www.chess.com"]

[Event "Titled Tuesday Blitz August 31 2021"]
[White "Dobrov, Vladimir"]
[Black "Sargsyan, Anna M."]
[WhiteFideId "4136594"]
[BlackFideId "13308130"]
[WhiteElo "2773"]
[BlackElo "2596"]
[Result "1-0"]
[Round "03"]
[TimeControl "180+1"]
[Date "2021.08.31"]
[WhiteClock "0:00:05"]
[BlackClock "0:00:05"]

1. d4 {[%clk 0:03:00]}  d5 {[%clk 0:02:59]} 2. c4 {[%clk 0:03:00]}  c6 {[%clk 0:03:00]} 3. Nc3 {[%clk 0:02:58]}  Nf6 {[%clk 0:02:59]} 4. Nf3 {[%clk 0:02:58]}  dxc4 {[%clk 0:02:59]} 5. a4 {[%clk 0:02:57]}  Bf5 {[%clk 0:02:59]} 6. Nh4 {[%clk 0:02:57]}  e6 {[%clk 0:02:56]} 7. Nxf5 {[%clk 0:02:56]}  exf5 {[%clk 0:02:57]} 8. Bg5 {[%clk 0:02:55]}  Bb4 {[%clk 0:02:53]} 9. e3 {[%clk 0:02:55]}  Qa5 {[%clk 0:02:52]} 10. Bxf6 {[%clk 0:02:55]}  Bxc3+ {[%clk 0:02:52]} 11. bxc3 {[%clk 0:02:56]}  Qxc3+ {[%clk 0:02:51]} 12. Ke2 {[%clk 0:02:57]}  gxf6 {[%clk 0:02:51]} 13. Kf3 {[%clk 0:02:57]}  Nd7 {[%clk 0:02:42]} 14. Rc1 {[%clk 0:02:50]}  Qa5 {[%clk 0:02:42]} 15. Bxc4 {[%clk 0:02:50]}  f4 {[%clk 0:02:35]} 16. Kxf4 {[%clk 0:02:50]}  Qg5+ {[%clk 0:02:30]} 17. Kf3 {[%clk 0:02:42]}  O-O-O {[%clk 0:02:29]} 18. Ke2 {[%clk 0:01:40]}  Ne5 {[%clk 0:02:13]} 19. Kf1 {[%clk 0:01:30]}  Rhg8 {[%clk 0:02:00]} 20. Rg1 {[%clk 0:01:29]}  Ng4 {[%clk 0:01:32]} 21. Bxf7 {[%clk 0:00:48]}  Nxh2+ {[%clk 0:01:29]} 22. Ke1 {[%clk 0:00:47]}  Rg7 {[%clk 0:01:26]} 23. Be6+ {[%clk 0:00:45]}  Kb8 {[%clk 0:01:27]} 24. Bh3 {[%clk 0:00:20]}  f5 {[%clk 0:01:24]} 25. Qe2 {[%clk 0:00:14]}  f4 {[%clk 0:01:23]} 26. Rc5 {[%clk 0:00:14]}  Qh6 {[%clk 0:00:58]} 27. exf4 {[%clk 0:00:09]}  Ka8 {[%clk 0:00:53]} 28. Re5 {[%clk 0:00:03]}  Qxf4 {[%clk 0:00:42]} 29. Qe3 {[%clk 0:00:03]}  Nf3+ {[%clk 0:00:40]} 30. gxf3 {[%clk 0:00:03]}  Rxg1+ {[%clk 0:00:39]} 31. Ke2 {[%clk 0:00:04]}  Qh2 {[%clk 0:00:28]} 32. Re8 {[%clk 0:00:03]}  Rg8 {[%clk 0:00:25]} 33. Rxg8 {[%clk 0:00:03]}  Rxg8 {[%clk 0:00:25]} 34. Be6 {[%clk 0:00:03]}  Re8 {[%clk 0:00:23]} 35. f4 {[%clk 0:00:04]}  Qh5+ {[%clk 0:00:22]} 36. Kd2 {[%clk 0:00:04]}  Qa5+ {[%clk 0:00:21]} 37. Ke2 {[%clk 0:00:04]}  Qxa4 {[%clk 0:00:21]} 38. f5 {[%clk 0:00:05]}  Qc2+ {[%clk 0:00:20]} 39. Kf3 {[%clk 0:00:05]}  h5 {[%clk 0:00:20]} 40. Kf4 {[%clk 0:00:06]}  h4 {[%clk 0:00:20]} 41. Kg5 {[%clk 0:00:06]}  h3 {[%clk 0:00:19]} 42. Qxh3 {[%clk 0:00:06]}  Qxf2 {[%clk 0:00:19]} 43. Qg4 {[%clk 0:00:06]}  Qd2+ {[%clk 0:00:18]} 44. Kf6 {[%clk 0:00:07]}  Rd8 {[%clk 0:00:17]} 45. Ke7 {[%clk 0:00:06]}  Rb8 {[%clk 0:00:14]} 46. f6 {[%clk 0:00:06]}  Qb4+ {[%clk 0:00:13]} 47. Kf7 {[%clk 0:00:05]}  Qf8+ {[%clk 0:00:12]} 48. Kg6 {[%clk 0:00:06]}  Qe8+ {[%clk 0:00:12]} 49. f7 {[%clk 0:00:04]}  Qh8 {[%clk 0:00:12]} 50. Qf4 {[%clk 0:00:03]}  a6 {[%clk 0:00:10]} 51. Bd7 {[%clk 0:00:03]}  Rf8 {[%clk 0:00:08]} 52. Qe5 {[%clk 0:00:03]}  Qh4 {[%clk 0:00:07]} 53. Qe8+ {[%clk 0:00:03]}  Ka7 {[%clk 0:00:04]} 54. Qxf8 {[%clk 0:00:03]}  Qg3+ {[%clk 0:00:04]} 55. Kh6 {[%clk 0:00:03]}  Qh4+ {[%clk 0:00:05]} 56. Kg7 {[%clk 0:00:03]}  Qg5+ {[%clk 0:00:05]} 57. Kh7 {[%clk 0:00:04]}  Qh5+ {[%clk 0:00:05]} 58. Kg8 {[%clk 0:00:04]}  Qg6+ {[%clk 0:00:05]} 59. Qg7 {[%clk 0:00:05]} 1-0


[Site "https://www.chess.com"]

[Event "Titled Tuesday Blitz August 31 2021"]
[White "Fernandez Hernandez, Arturo A."]
[Black "Timmermans, Mark"]
[WhiteFideId "3509230"]
[BlackFideId "1026399"]
[WhiteElo "2400"]
[BlackElo "2460"]
[Result "0-1"]
[Round "03"]
[TimeControl "180+1"]
[Date "2021.08.31"]
[WhiteClock "0:00:04"]
[BlackClock "0:00:27"]

1. e4 {[%clk 0:03:00]}  e5 {[%clk 0:02:59]} 2. Nf3 {[%clk 0:03:00]}  Nc6 {[%clk 0:02:59]} 3. d4 {[%clk 0:03:00]}  exd4 {[%clk 0:03:00]} 4. Nxd4 {[%clk 0:03:00]}  Nf6 {[%clk 0:03:01]} 5. Nxc6 {[%clk 0:03:00]}  bxc6 {[%clk 0:03:02]} 6. e5 {[%clk 0:03:00]}  Qe7 {[%clk 0:03:02]} 7. Qe2 {[%clk 0:03:01]}  Nd5 {[%clk 0:03:03]} 8. h4 {[%clk 0:03:01]}  f6 {[%clk 0:03:03]} 9. c4 {[%clk 0:02:55]}  Ba6 {[%clk 0:03:03]} 10. exf6 {[%clk 0:02:51]}  Qxe2+ {[%clk 0:02:59]} 11. Bxe2 {[%clk 0:02:51]}  Bb4+ {[%clk 0:02:55]} 12. Nd2 {[%clk 0:02:47]}  Nxf6 {[%clk 0:02:54]} 13. a3 {[%clk 0:02:46]}  Bxd2+ {[%clk 0:02:46]} 14. Bxd2 {[%clk 0:02:46]}  O-O {[%clk 0:02:47]} 15. O-O {[%clk 0:02:37]}  Rab8 {[%clk 0:02:43]} 16. b4 {[%clk 0:02:35]}  Rfe8 {[%clk 0:02:33]} 17. Rfe1 {[%clk 0:02:29]}  d5 {[%clk 0:02:02]} 18. Rac1 {[%clk 0:02:20]}  Re4 {[%clk 0:01:52]} 19. f3 {[%clk 0:01:49]}  Re7 {[%clk 0:01:49]} 20. Bf1 {[%clk 0:01:42]}  Rxe1 {[%clk 0:01:46]} 21. Bxe1 {[%clk 0:01:41]}  dxc4 {[%clk 0:01:46]} 22. Bf2 {[%clk 0:01:30]}  Ra8 {[%clk 0:01:34]} 23. Bxc4+ {[%clk 0:01:27]}  Bxc4 {[%clk 0:01:34]} 24. Rxc4 {[%clk 0:01:27]}  a5 {[%clk 0:01:30]} 25. Rxc6 {[%clk 0:01:26]}  axb4 {[%clk 0:01:31]} 26. axb4 {[%clk 0:01:26]}  Nd5 {[%clk 0:01:31]} 27. b5 {[%clk 0:01:22]}  Ra1+ {[%clk 0:01:32]} 28. Kh2 {[%clk 0:01:21]}  Rb1 {[%clk 0:01:32]} 29. Rc5 {[%clk 0:01:21]}  Nf4 {[%clk 0:01:29]} 30. Rf5 {[%clk 0:01:05]}  Ne6 {[%clk 0:01:23]} 31. h5 {[%clk 0:01:01]}  h6 {[%clk 0:01:21]} 32. g4 {[%clk 0:00:49]}  Rb2 {[%clk 0:01:12]} 33. Kg3 {[%clk 0:00:48]}  Rb3 {[%clk 0:01:12]} 34. Kg2 {[%clk 0:00:32]}  Rb2 {[%clk 0:01:12]} 35. f4 {[%clk 0:00:32]}  Nd4 {[%clk 0:01:08]} 36. Rc5 {[%clk 0:00:24]}  Nxb5 {[%clk 0:01:08]} 37. g5 {[%clk 0:00:24]}  hxg5 {[%clk 0:01:05]} 38. fxg5 {[%clk 0:00:24]}  Nd6 {[%clk 0:01:05]} 39. Kf3 {[%clk 0:00:21]}  Rxf2+ {[%clk 0:01:05]} 40. Ke3 {[%clk 0:00:20]}  Rf5 {[%clk 0:01:04]} 41. Rxc7 {[%clk 0:00:19]}  Rxg5 {[%clk 0:01:04]} 42. h6 {[%clk 0:00:19]}  gxh6 {[%clk 0:00:54]} 43. Kf4 {[%clk 0:00:19]}  Nf7 {[%clk 0:00:54]} 44. Rc6 {[%clk 0:00:16]}  Kg7 {[%clk 0:00:54]} 45. Ra6 {[%clk 0:00:16]}  Rg6 {[%clk 0:00:54]} 46. Ra5 {[%clk 0:00:15]}  Rg5 {[%clk 0:00:53]} 47. Ra6 {[%clk 0:00:14]}  Rg1 {[%clk 0:00:48]} 48. Rb6 {[%clk 0:00:13]}  h5 {[%clk 0:00:44]} 49. Rb5 {[%clk 0:00:13]}  Rg4+ {[%clk 0:00:43]} 50. Kf3 {[%clk 0:00:13]}  Kh6 {[%clk 0:00:40]} 51. Rf5 {[%clk 0:00:11]}  Ng5+ {[%clk 0:00:38]} 52. Kf2 {[%clk 0:00:11]}  h4 {[%clk 0:00:38]} 53. Rf8 {[%clk 0:00:11]}  h3 {[%clk 0:00:38]} 54. Rh8+ {[%clk 0:00:11]}  Nh7 {[%clk 0:00:36]} 55. Ra8 {[%clk 0:00:08]}  Kg5 {[%clk 0:00:32]} 56. Ra1 {[%clk 0:00:07]}  Nf6 {[%clk 0:00:29]} 57. Rh1 {[%clk 0:00:06]}  Rg2+ {[%clk 0:00:29]} 58. Kf3 {[%clk 0:00:06]}  Kh4 {[%clk 0:00:29]} 59. Ra1 {[%clk 0:00:05]}  Rg3+ {[%clk 0:00:28]} 60. Kf2 {[%clk 0:00:05]}  Ng4+ {[%clk 0:00:28]} 61. Ke2 {[%clk 0:00:04]}  h2 {[%clk 0:00:27]} 62. Rh1 {[%clk 0:00:04]}  Rg1 {[%clk 0:00:27]} 0-1


[Site "https://www.chess.com"]

[Event "Titled Tuesday Blitz August 31 2021"]
[White "Fier, Alexandr"]
[Black "Mortazavi, Ali"]
[WhiteFideId "2107139"]
[BlackFideId "401323"]
[WhiteElo "2569"]
[BlackElo "2339"]
[Result "1-0"]
[Round "03"]
[TimeControl "180+1"]
[Date "2021.08.31"]
[WhiteClock "0:01:18"]
[BlackClock "0:00:06"]

1. d4 {[%clk 0:03:00]}  Nf6 {[%clk 0:02:56]} 2. c4 {[%clk 0:02:57]}  g6 {[%clk 0:02:56]} 3. Nc3 {[%clk 0:02:57]}  Bg7 {[%clk 0:02:57]} 4. e4 {[%clk 0:02:52]}  O-O {[%clk 0:02:58]} 5. Be2 {[%clk 0:02:53]}  d6 {[%clk 0:02:57]} 6. Bg5 {[%clk 0:02:53]}  c5 {[%clk 0:02:45]} 7. d5 {[%clk 0:02:46]}  e6 {[%clk 0:02:43]} 8. Qd2 {[%clk 0:02:45]}  exd5 {[%clk 0:02:39]} 9. exd5 {[%clk 0:02:44]}  Qb6 {[%clk 0:02:36]} 10. Nf3 {[%clk 0:02:41]}  Bf5 {[%clk 0:02:35]} 11. Nh4 {[%clk 0:02:41]}  Ne4 {[%clk 0:02:31]} 12. Nxe4 {[%clk 0:02:41]}  Bxe4 {[%clk 0:02:32]} 13. f3 {[%clk 0:02:42]}  h6 {[%clk 0:02:27]} 14. Bxh6 {[%clk 0:02:42]}  Bxh6 {[%clk 0:02:15]} 15. Qxh6 {[%clk 0:02:43]}  Qxb2 {[%clk 0:02:15]} 16. Rc1 {[%clk 0:02:44]}  Re8 {[%clk 0:02:07]} 17. O-O {[%clk 0:02:30]}  Bc2 {[%clk 0:01:18]} 18. Rf2 {[%clk 0:02:01]}  Nd7 {[%clk 0:00:18]} 19. Bf1 {[%clk 0:01:54]}  Qd4 {[%clk 0:00:17]} 20. Rxc2 {[%clk 0:01:53]}  Re1 {[%clk 0:00:12]} 21. g3 {[%clk 0:01:48]}  Nf6 {[%clk 0:00:07]} 22. Re2 {[%clk 0:01:40]}  Rxe2 {[%clk 0:00:07]} 23. Bxe2 {[%clk 0:01:40]}  Re8 {[%clk 0:00:05]} 24. Kg2 {[%clk 0:01:39]}  Re5 {[%clk 0:00:06]} 25. Nxg6 {[%clk 0:01:18]} 1-0


[Site "https://www.chess.com"]

[Event "Titled Tuesday Blitz August 31 2021"]
[White "Gelman, Alexander"]
[Black "Ponikarovsky, Alexey"]
[WhiteFideId "4118316"]
[BlackFideId "4122887"]
[WhiteElo "2375"]
[BlackElo "1944"]
[Result "1-0"]
[Round "03"]
[TimeControl "180+1"]
[Date "2021.08.31"]
[WhiteClock "0:00:25"]
[BlackClock "0:01:06"]

1. d4 {[%clk 0:03:00]}  d5 {[%clk 0:02:55]} 2. Nc3 {[%clk 0:03:01]}  Nf6 {[%clk 0:02:53]} 3. Bf4 {[%clk 0:03:01]}  e6 {[%clk 0:02:53]} 4. Nb5 {[%clk 0:03:01]}  Bb4+ {[%clk 0:02:44]} 5. c3 {[%clk 0:03:01]}  Ba5 {[%clk 0:02:44]} 6. a4 {[%clk 0:02:54]}  a6 {[%clk 0:02:42]} 7. b4 {[%clk 0:02:54]}  axb5 {[%clk 0:02:38]} 8. axb5 {[%clk 0:02:54]}  Bd7 {[%clk 0:02:34]} 9. e3 {[%clk 0:02:47]}  Bxb4 {[%clk 0:02:34]} 10. cxb4 {[%clk 0:02:39]}  Rxa1 {[%clk 0:02:33]} 11. Qxa1 {[%clk 0:02:40]}  O-O {[%clk 0:02:33]} 12. Nf3 {[%clk 0:02:32]}  Qe7 {[%clk 0:02:33]} 13. Qa5 {[%clk 0:02:12]}  c6 {[%clk 0:02:26]} 14. b6 {[%clk 0:01:54]}  Na6 {[%clk 0:02:24]} 15. Bxa6 {[%clk 0:01:53]}  bxa6 {[%clk 0:02:25]} 16. b7 {[%clk 0:01:48]}  e5 {[%clk 0:02:08]} 17. Bxe5 {[%clk 0:01:44]}  Bg4 {[%clk 0:01:58]} 18. b8=Q {[%clk 0:01:36]}  Rxb8 {[%clk 0:01:54]} 19. Bxb8 {[%clk 0:01:37]}  Qe4 {[%clk 0:01:51]} 20. Nd2 {[%clk 0:01:24]}  Qe8 {[%clk 0:01:48]} 21. Be5 {[%clk 0:01:21]}  Nd7 {[%clk 0:01:41]} 22. Qc7 {[%clk 0:01:19]}  h5 {[%clk 0:01:38]} 23. h3 {[%clk 0:01:15]}  Bf5 {[%clk 0:01:36]} 24. Qxc6 {[%clk 0:01:12]}  Bd3 {[%clk 0:01:34]} 25. f3 {[%clk 0:01:04]}  Bb5 {[%clk 0:01:31]} 26. Qxd5 {[%clk 0:01:02]}  Qc8 {[%clk 0:01:31]} 27. Qb3 {[%clk 0:00:45]}  Qc1+ {[%clk 0:01:26]} 28. Qd1 {[%clk 0:00:45]}  Qb2 {[%clk 0:01:26]} 29. Kf2 {[%clk 0:00:39]}  Nb6 {[%clk 0:01:26]} 30. Kg3 {[%clk 0:00:36]}  Nd5 {[%clk 0:01:23]} 31. Qc1 {[%clk 0:00:33]}  Qxb4 {[%clk 0:01:18]} 32. Qc8+ {[%clk 0:00:30]}  Kh7 {[%clk 0:01:15]} 33. Qf5+ {[%clk 0:00:30]}  Kg8 {[%clk 0:01:12]} 34. Rc1 {[%clk 0:00:29]}  Ne7 {[%clk 0:01:09]} 35. Qg5 {[%clk 0:00:24]}  f6 {[%clk 0:01:07]} 36. Bxf6 {[%clk 0:00:25]}  Qd6+ {[%clk 0:01:06]} 37. Be5 {[%clk 0:00:25]} 1-0


[Site "https://www.chess.com"]